[Event "Djerba Festival Masters 2024"]
[Site "Djerba"]
[Date "2024.02.19"]
[Round "2.4"]
[White "Moussard, Jules"]
[Black "Niemann, Hans Moke"]
[Result "1/2-1/2"]
[ECO "C67"]
[WhiteElo "2630"]
[BlackElo "2692"]
[Annotator "TA"]
[PlyCount "101"]
[EventDate "2024.02.18"]
[EventType "tourn"]
[EventCountry "TUN"]
[SourceTitle "playchess.com"]
[Source "ChessBase"]
[SourceQuality "1"]
[TimeControl "5400+30"]

{[%evp 21,60,14,26,20,27,52,47,37,39,19,19,13,8,11,47,31,29,48,22,17,51,22,11,11,13,0,0,13,12,0,0,0,0,0,0,0,0,0,0,0,0]} 1. e4 c5 2. Nf3 d6 3. Bb5+ Nd7 4. O-O a6 5. Be2 Ngf6 6. d3 b6 7. c4 Bb7 8. Nc3 g6 9. Rb1 Bg7 10. b4 Bc6 11. h3 O-O 12. Be3 e6 13. Qb3 Qe7 14. a4 Rfb8 15. Rfd1 h6 16. Ne1 g5 17. Nc2 a5 18. bxc5 bxc5 19. Nb5 Ne5 20. Qa3 Bb7 21. f4 gxf4 22. Bxf4 Ne8 23. Qc1 Kh7 24. Rf1 Nc7 25. Ne3 Nxb5 26. cxb5 Rg8 27. Ng4 f5 28. Nxe5 Bxe5 29. Bxe5 dxe5 30. Bf3 Rg3 31. Qc3 Rag8 32. Qxe5 Qg5 33. Bg4 Qe3+ 34. Kh2 R3xg4 35. hxg4 Rxg4 36. Rf3 Rh4+ 37. Kg3 Rg4+ 38. Kh2 Rh4+ 39. Kg3 Rg4+ 40. Kh3 Qd2 41. Rg3 Qg5 42. Kh2 Qh4+ 43. Rh3 Qf2 44. Rg1 fxe4 45. Qxe6 Rg6 46. Qd7+ Rg7 47. Qd6 Rg6 48. Qd7+ Rg7 49. Qd6 Rg6 50. Qc7+ Rg7 51. Qd6 1/2-1/2

[Event "Djerba Festival Masters 2024"]
[Site "Djerba"]
[Date "2024.02.20"]
[Round "3.1"]
[White "Niemann, Hans Moke"]
[Black "Dardha, Daniel"]
[Result "1/2-1/2"]
[ECO "D35"]
[WhiteElo "2692"]
[BlackElo "2602"]
[Annotator "TA"]
[PlyCount "55"]
[EventDate "2024.02.18"]
[EventType "tourn"]
[EventCountry "TUN"]
[SourceTitle "playchess.com"]
[Source "ChessBase"]
[SourceQuality "1"]
[TimeControl "5400+30"]

{[%evp 12,55,22,8,12,3,27,21,25,25,15,18,16,19,26,0,0,0,0,0,0,0,0,0,0,0,0,0,0,0,0,0,0,-13,-2,-2,0,0,0,0,0,0,0,0,0,-8]} 1. c4 {[%emt 0:03:01]} e6 {[%emt 0:01:23]} 2. Nc3 {[%emt 0:00:33]} d5 {[%emt 0:00:14]} 3. d4 {[%emt 0:00:29]} Nf6 {[%emt 0:01:21]} 4. cxd5 {[%emt 0:00:11]} Nxd5 {[%emt 0:00:19]} 5. e4 {[%emt 0:00:20]} Nxc3 {[%emt 0:00:05]} 6. bxc3 {[%emt 0:00:08][%cal Bb2c3,Bc3d4,Bd4e5][%mdl 32]} c5 {[%emt 0:00:04]} 7. a3 {[%emt 0:00:35]} cxd4 {[%emt 0:02:58]} 8. cxd4 {[%emt 0:00:05]} e5 {[%emt 0:00:25]} 9. dxe5 {[%emt 0:00:07]} Qxd1+ {[%emt 0:10:09]} 10. Kxd1 {[%emt 0:00:07]} Nc6 {[%emt 0:01:56]} 11. f4 {[%emt 0:00:09]} Bg4+ {[%emt 0:01:34]} 12. Nf3 {[%emt 0:00:15]} Nd4 {[%emt 0:11:29][%cal Oe8c8] [#] Threatens to win with ...0-0-0!} 13. Be2 {[%emt 0:11:10]} Bxf3 {[%emt 0:10:08] The position is equal.} 14. Bxf3 {[%emt 0:07:19]} Rd8 {[%emt 0:03:20]} 15. Bd2 {[%emt 0:01:53]} Nb3 {[%emt 0:00:13][%csl LRa1,LRd2]} 16. Ra2 {[%emt 0:00:20]} Nxd2 {[%emt 0:03:18]} 17. Rxd2 {[%emt 0:00:05]} Rxd2+ {[%emt 0:00:08]} 18. Kxd2 {[%emt 0:00:12]} Bxa3 $11 {[%emt 0:00:05][%mdl 4096] Endgame. KRB-KRB} 19. Rb1 {[%emt 0:07:56]} b6 {[%emt 0:00:41]} 20. Be2 {[%emt 0:00:26]} Ke7 {[%emt 0:04:10]} 21. Bc4 {[%emt 0:00:08]} Rc8 {[%emt 0:02:46]} 22. Bd5 {[%emt 0:00:16]} Rc5 {[%emt 0:06:21]} 23. g4 {[%emt 0:12:28]} a5 {[%emt 0:06:39]} 24. Rxb6 {[%emt 0:03:22] [#] Kd3 would now be deadly.} Bc1+ {[%emt 0:00:04]} 25. Kd3 {[%emt 0:00:07]} Bxf4 {[%emt 0:00:05]} 26. Rb7+ {[%emt 0:00:03]} Kd8 {[%emt 0:00:07]} 27. Rb8+ {[%emt 0:01:14]} Rc8 {[%emt 0:03:11]} 28. Rxc8+ {[%emt 0:00:04] An uneventful encounter.   Weighted Error Value: White=0.04 (flawless) /Black=0.02 (flawless) .  Inaccurate:     	White=1     	---        OK:         	White=9     	Black=10     Best:        	White=1     	Black=3} 1/2-1/2

[Event "Djerba Festival Masters 2024"]
[Site "Djerba"]
[Date "2024.02.20"]
[Round "3.2"]
[White "Divya Deshmukh"]
[Black "Moussard, Jules"]
[Result "1/2-1/2"]
[ECO "B10"]
[WhiteElo "2420"]
[BlackElo "2630"]
[Annotator "TA"]
[PlyCount "71"]
[EventDate "2024.02.18"]
[EventType "tourn"]
[EventCountry "TUN"]
[SourceTitle "playchess.com"]
[Source "ChessBase"]
[SourceQuality "1"]
[TimeControl "5400+30"]

{[%evp 9,71,0,-10,-18,0,0,33,21,28,11,7,10,18,7,12,7,19,14,20,20,33,20,33,-7,0,0,40,36,42,45,46,35,87,85,135,127,112,108,119,68,68,65,67,79,72,75,71,55,51,50,54,55,60,59,56,51,51,52,50,50,50,38,36,33]} 1. e4 {[%emt 1:31:00]} c6 {[%emt 0:04:35]} 2. Nf3 {[%emt 0:00:00][%cal Bg1f3,Bf3e1,Be1d3][%mdl 32]} d5 {[%emt 0:00:06]} 3. d3 {[%emt 0:00:00]} dxe4 {[%emt 0:02:22]} 4. dxe4 {[%emt 0:00:00]} Qxd1+ {[%emt 0:00:05]} 5. Kxd1 {[%emt 0:00:00]} Nf6 {[%emt 0:00:07]} 6. Nbd2 {[%emt 0:00:00]} Nbd7 {[%emt 0:01:21]} 7. Ne1 {[%emt 0:00:00]} h5 {[%emt 0:01:38]} 8. Nd3 {[%emt 0:00:00]} g5 {[%emt 0:05:13]} 9. b3 {[%emt 0:00:00]} Bg7 {[%emt 0:10:37][%cal Of6e4] [#] And now ...Nxe4! would win.} 10. Bb2 {[%emt 0:00:00]} Nf8 {[%emt 0:03:31]} 11. h4 {[%emt 0:00:00]} g4 {[%emt 0:05:39]} 12. f4 {[%emt 0:00:00]} gxf3 {[%emt 0:01:16]} 13. gxf3 {[%emt 0:00:00]} Bh6 {[%emt 0:00:30]} 14. Nc4 {[%emt 0:00:00]} Rg8 {[%emt 0:03:20]} 15. Ke2 {[%emt 0:00:00]} Be6 {[%emt 0:04:48]} 16. Kf2 {[%emt 0:00:00]} Bxc4 {[%emt 0:02:48]} 17. bxc4 {[%emt 0:00:00]} Ne6 {[%emt 0:13:48]} 18. Bh3 {[%emt 0:00:00][%cal Bf1h3,Bh3d7,Bd7f5,Bf5e4][%mdl 32]} Nf4 {[%emt 0:03:42]} 19. Nxf4 {[%emt 0:00:00]} Bxf4 {[%emt 0:00:04]} 20. Rad1 {[%emt 0:00:00] Dodges Nd7. Hoping for e5.} Bc7 {[%emt 0:14:14]} ({Better is} 20... Kf8 $14) 21. e5 $16 {[%emt 0:00:00]} Nh7 {[%emt 0:00:04]} (21... Bb6+ $142 22. Bd4 Nh7 (22... Bxd4+ $2 23. Rxd4 c5 24. Rd2 $18)) 22. Bd7+ {[%emt 0:00:00] A strong pair of Bishops.} Kf8 {[%emt 0:00:04]} 23. Bf5 {[%emt 0:00:00]} Rg7 {[%emt 0:00:33] [#]} 24. c5 {[%emt 0:00:00] White has more active pieces.} (24. f4 $1 $16) 24... e6 $1 $14 {[%emt 0:02:45]} 25. Be4 {[%emt 0:00:00]} Ke7 {[%emt 0:01:16]} 26. Rhg1 {[%emt 0:00:00] Wards off f5} Rxg1 {[%emt 0:00:26]} 27. Rxg1 {[%emt 0:00:00]} Nf8 {[%emt 0:00:43]} 28. Rg5 {[%emt 0:00:00]} Nd7 {[%emt 0:01:00] White is slightly better.} 29. Bd4 {[%emt 0:00:00]} Rh8 {[%emt 0:01:35]} 30. f4 {[%emt 0:00:00]} Kf8 {[%emt 0:01:53]} 31. Rg1 {[%emt 0:00:52]} Bd8 {[%emt 0:07:54]} 32. Rb1 {[%emt 0:00:40]} Be7 $1 {[%emt 0:00:26]} 33. Rxb7 {[%emt 0:01:32]} Nxc5 {[%emt 0:00:03]} 34. Bxc5 {[%emt 0:00:15]} (34. Rxa7 Nxe4+ 35. Kf3 c5 $19 (35... Nd2+ $2 36. Ke2 $19)) 34... Bxc5+ {[%emt 0:00:02]} 35. Kf3 {[%emt 0:00:22]} Rg8 {[%emt 0:01:31]} 36. Rb8+ {[%emt 0:04:08] Weighted Error Value: White=0.07 (flawless) /Black=0.08 (flawless) .  Mistake:       	White=1     	Black=2      Inaccurate:     	White=1     	Black=2      OK:         	White=10    	Black=15     Best:        	White=3     	Black=2      Strong:       	---       	Black=2} 1/2-1/2

[Event "Djerba Festival Masters 2024"]
[Site "Djerba"]
[Date "2024.02.20"]
[Round "3.4"]
[White "Maurizzi, Marc`Andria"]
[Black "Bellahcene, Bilel"]
[Result "1/2-1/2"]
[ECO "C70"]
[WhiteElo "2572"]
[BlackElo "2516"]
[Annotator "TA"]
[PlyCount "67"]
[EventDate "2024.02.18"]
[EventType "tourn"]
[EventCountry "TUN"]
[SourceTitle "playchess.com"]
[Source "ChessBase"]
[SourceQuality "1"]
[TimeControl "5400+30"]

{[%evp 9,67,29,30,20,12,32,22,9,31,20,22,18,17,0,0,-11,0,0,0,0,0,0,0,0,0,0,0,0,16,0,0,0,0,17,15,12,0,0,7,4,10,13,12,14,24,12,27,34,27,0,0,0,2,0,15,23,21,0,0,0]} 1. e4 {[%emt 0:00:33]} e5 {[%emt 0:03:25]} 2. Nf3 {[%emt 0:00:35]} Nc6 {[%emt 0:00:04]} 3. Bb5 {[%emt 0:00:32]} a6 {[%emt 0:00:09]} 4. Ba4 {[%emt 0:00:04]} Nge7 {[%emt 0:00:27][%cal Bg8e7,Be7g6,Bg6e5,Be5g4,Bg4f6,Bf6e4][%mdl 32]} 5. Nc3 {[%emt 0:04:31]} Ng6 {[%emt 0:00:17]} 6. h4 {[%emt 0:00:55]} h5 {[%emt 0:03:34]} 7. d4 {[%emt 0:05:51]} Bb4 {[%emt 0:10:27]} 8. dxe5 {[%emt 0:06:19]} Ncxe5 {[%emt 0:15:07]} 9. Nxe5 {[%emt 0:05:39]} Nxe5 {[%emt 0:00:02]} 10. Qd4 {[%emt 0:10:46][%csl LRb4,LRe5]} Qe7 {[%emt 0:01:18]} 11. f4 {[%emt 0:08:44]} Ng4 {[%emt 0:18:49]} 12. Bd2 {[%emt 0:03:40]} O-O {[%emt 0:07:22] [#] ...c6 would now be deadly.} 13. Nd5 {[%emt 0:06:09][%csl LRb4,LRc7,LRe7]} Bxd2+ {[%emt 0:00:28]} 14. Kxd2 {[%emt 0:00:03]} Qd8 {[%emt 0:00:09]} 15. Qc5 {[%emt 0:02:30]} Nf6 {[%emt 0:09:04]} 16. Qxc7 {[%emt 0:03:44]} (16. Nxc7 $2 {loses.} Nxe4+ 17. Ke3 Nxc5 $19) 16... Nxe4+ {[%emt 0:00:18]} 17. Kc1 $1 {[%emt 0:00:32]} Qxc7 {[%emt 0:03:10]} 18. Nxc7 {[%emt 0:00:04]} Ra7 {[%emt 0:00:35] [#] Threatens to win with ...b5.} 19. Nd5 {[%emt 0:01:39]} b5 {[%emt 0:04:03]} 20. Bb3 {[%emt 0:00:27]} Bb7 {[%emt 0:00:40]} 21. Re1 {[%emt 0:04:01]} Nc5 {[%emt 0:05:18] White must now prevent ...Nxb3+.} 22. Ne7+ {[%emt 0:02:41]} Kh7 {[%emt 0:00:14]} 23. Bd5 {[%emt 0:01:00]} Ne6 {[%emt 0:00:19]} 24. f5 {[%emt 0:03:53]} Nd4 {[%emt 0:01:15]} 25. Bxb7 {[%emt 0:05:12]} Rxb7 {[%emt 0:00:02][%cal Ba7b7,Bb7b5,Bb5f5][%mdl 32]} 26. Kd2 {[%emt 0:01:40]} b4 {[%emt 0:02:44]} 27. f6 {[%emt 0:06:19]} Rb5 {[%emt 0:07:52]} 28. fxg7 {[%emt 0:02:56]} Kxg7 {[%emt 0:00:07]} 29. Re3 {[%emt 0:00:50]} Nf5 {[%emt 0:00:44] Wards off Rg3+} 30. Nxf5+ {[%emt 0:01:02]} Rxf5 {[%emt 0:00:01]} 31. a3 {[%emt 0:01:17]} a5 {[%emt 0:01:02]} 32. axb4 {[%emt 0:01:08]} axb4 {[%emt 0:00:05]} 33. Ra7 {[%emt 0:00:21]} Rc8 {[%emt 0:00:15]} 34. Rg3+ {[%emt 0:03:20] An interesting draw.   Weighted Error Value: White=0.04 (flawless) /Black=0.02 (flawless) .  Inaccurate:     	White=1     	---        OK:         	White=13    	Black=14     Best:        	White=2     	Black=2      Strong:       	White=1     	---} 1/2-1/2

[Event "Djerba Festival Masters 2024"]
[Site "Djerba"]
[Date "2024.02.22"]
[Round "4.1"]
[White "Dardha, Daniel"]
[Black "Bellahcene, Bilel"]
[Result "1-0"]
[ECO "D30"]
[WhiteElo "2602"]
[BlackElo "2516"]
[Annotator "TA"]
[PlyCount "115"]
[EventDate "2024.02.18"]
[EventType "tourn"]
[EventCountry "TUN"]
[SourceTitle "playchess.com"]
[Source "ChessBase"]
[SourceQuality "1"]
[TimeControl "5400+30"]

{[%evp 37,115,0,0,0,0,0,20,0,0,0,9,10,14,16,17,6,5,14,9,8,10,0,9,8,11,11,14,0,47,0,43,44,39,45,111,104,100,91,109,97,125,125,120,57,57,64,57,57,57,57,371,361,370,218,612,1025,550,1095,1000,1033,1000,943,451,451,951,902,709,609,3221,3156,2561,1756,29952,29952,29965,29965,29960,29960,12431,12419]} 1. d4 {[%emt 0:04:11]} Nf6 {[%emt 0:03:44]} 2. c4 {[%emt 0:00:08]} e6 {[%emt 0:00:10]} 3. g3 {[%emt 0:00:11]} d5 {[%emt 0:00:33]} 4. Bg2 {[%emt 0:00:08]} dxc4 {[%emt 0:00:04]} 5. Qa4+ {[%emt 0:00:37]} c6 {[%emt 0:04:34]} 6. Qxc4 {[%emt 0:03:00]} b5 {[%emt 0:00:37]} 7. Qd3 {[%emt 0:00:07]} Bb7 {[%emt 0:00:19]} 8. Nf3 {[%emt 0:00:18]} Nbd7 {[%emt 0:01:16] D30: Queen's Gambit Declined: Systems without Nc3.} 9. O-O {[%emt 0:01:52]} a6 {[%emt 0:02:39]} 10. Nfd2 {[%emt 0:00:44] is the legacy move (10.a4).} Rb8 {[%emt 0:14:03]} 11. Nb3 $146 {[%emt 0:05:18]} ({Predecessor:} 11. a4 c5 12. Bxb7 Rxb7 13. axb5 axb5 14. Qf3 Rb8 15. dxc5 Bxc5 16. Nb3 Bb6 17. Rd1 {1-0 Quintiliano Pinto,R (2443)-Santiago,Y (2427) Mercosur Cup 20th 2016 (4)}) 11... c5 {[%emt 0:20:14]} 12. Bxb7 {[%emt 0:00:14]} Rxb7 {[%emt 0:00:07]} 13. Qf3 {[%emt 0:00:16]} Rc7 {[%emt 0:04:20]} 14. Bf4 {[%emt 0:04:01]} Rc8 {[%emt 0:00:50]} 15. dxc5 {[%emt 0:00:37]} Nxc5 {[%emt 0:09:45]} 16. Nc3 {[%emt 0:03:02]} Be7 {[%emt 0:01:13]} 17. Nxc5 {[%emt 0:11:21]} Rxc5 {[%emt 0:01:47]} 18. Rad1 {[%emt 0:01:03]} Qc8 {[%emt 0:00:26]} 19. Bd6 {[%emt 0:01:10]} Bxd6 {[%emt 0:00:10]} 20. Rxd6 {[%emt 0:00:06]} O-O {[%emt 0:00:37]} 21. Rfd1 {[%emt 0:01:20]} a5 {[%emt 0:01:17]} 22. Qd3 {[%emt 0:14:58]} b4 {[%emt 0:03:52]} 23. Na4 {[%emt 0:00:21]} Rd5 {[%emt 0:01:45]} 24. Rxd5 {[%emt 0:02:42]} exd5 {[%emt 0:00:35]} 25. Nb6 {[%emt 0:09:00]} Qe6 {[%emt 0:00:45]} 26. Nxd5 {[%emt 0:00:09]} Nxd5 {[%emt 0:00:04]} 27. Qxd5 {[%emt 0:00:05]} Qxe2 {[%emt 0:00:04]} 28. Rd2 {[%emt 0:00:10]} Qa6 {[%emt 0:06:58]} 29. Kg2 {[%emt 0:01:21]} h6 {[%emt 0:00:29]} 30. Rd3 {[%emt 0:07:41]} Rb8 {[%emt 0:03:48]} 31. Rf3 {[%emt 0:02:38]} Qa7 {[%emt 0:00:35]} 32. b3 {[%emt 0:01:43]} Rf8 {[%emt 0:08:48]} (32... Qc7 $11 {is superior.}) 33. Qc6 {[%emt 0:04:33]} (33. Rf5 $14) 33... Qa8 {[%emt 0:04:57]} 34. Qxa8 {[%emt 0:01:19]} Rxa8 {[%emt 0:00:02]} 35. Rf5 {[%emt 0:00:09]} a4 {[%emt 0:00:26]} (35... f6 $14) 36. Rb5 $16 {[%emt 0:00:11]} axb3 {[%emt 0:00:05]} 37. axb3 {[%emt 0:00:03]} Ra2 {[%emt 0:00:31]} 38. g4 {[%emt 0:01:58]} Rb2 {[%emt 0:01:34]} 39. Rxb4 {[%emt 0:00:09]} Kh7 {[%emt 0:01:26]} 40. h4 {[%emt 0:01:22]} (40. Rb6 $16) 40... h5 $1 $14 {[%emt 0:01:39]} 41. gxh5 {[%emt 0:02:50]} Kh6 {[%emt 0:00:35]} 42. Rb5 {[%emt 0:00:07]} Rd2 $1 {[%emt 0:01:02]} 43. Kg3 {[%emt 0:02:59]} Rd3+ $2 {[%emt 0:00:30][%mdl 8192] [#]} (43... Rd4 $14) 44. Kg4 $1 $18 {[%emt 0:00:40]} Rd2 {[%emt 0:01:50]} 45. Rb8 {[%emt 0:04:18]} (45. Rb6+ $142 Kh7 46. f3) 45... f5+ $2 {[%emt 0:01:01]} (45... Kh7 46. f4 Rg2+ 47. Kf3 Rg1) 46. Kxf5 $18 {[%emt 0:00:05]} Rxf2+ {[%emt 0:00:05]} 47. Kg4 {[%emt 0:01:18]} (47. Ke6 $142 Kh7 48. b4) 47... Kh7 $18 {[%emt 0:00:51]} 48. b4 {[%emt 0:00:35]} Rg2+ {[%emt 0:00:41]} 49. Kf3 {[%emt 0:01:05]} Rh2 {[%emt 0:00:21]} 50. Kg3 {[%emt 0:00:05]} Rd2 {[%emt 0:00:21]} (50... Rb2 $142 51. b5 Rc2) 51. Rf8 $18 {[%emt 0:01:35]} Rb2 {[%emt 0:00:40] [#]} 52. Rf4 $1 {[%emt 0:01:19]} Kh6 {[%emt 0:00:32]} 53. Kg4 {[%emt 0:00:20]} Rg2+ {[%emt 0:00:51]} 54. Kf5 {[%emt 0:00:51]} Kxh5 {[%emt 0:00:22]} 55. Ke5 {[%emt 0:00:35]} Rh2 {[%emt 0:00:23]} 56. Kd5 {[%emt 0:00:28]} Rd2+ {[%emt 0:00:45]} 57. Kc5 {[%emt 0:00:31]} Rc2+ {[%emt 0:00:30]} 58. Rc4 {[%emt 0:00:12]} 1-0

[Event "Djerba Festival Masters 2024"]
[Site "Djerba"]
[Date "2024.02.22"]
[Round "4.2"]
[White "Tari, Aryan"]
[Black "Maurizzi, Marc`Andria"]
[Result "1-0"]
[ECO "D31"]
[WhiteElo "2623"]
[BlackElo "2572"]
[Annotator "TA"]
[PlyCount "53"]
[EventDate "2024.02.18"]
[EventType "tourn"]
[EventCountry "TUN"]
[SourceTitle "playchess.com"]
[Source "ChessBase"]
[SourceQuality "1"]
[TimeControl "5400+30"]

{[%evp 16,52,0,0,0,-29,-33,-3,-18,-72,6,13,136,139,404,337,374,406,452,450,409,443,458,452,459,452,718,786,577,469,1002,461,953,938,912,897,6403,6502,29999]} 1. c4 {[%emt 0:01:12]} e6 {[%emt 0:00:40]} 2. Nc3 {[%emt 0:00:58]} d5 {[%emt 0:00:05]} 3. d4 {[%emt 0:00:27]} c6 {[%emt 0:00:05]} 4. e4 {[%emt 0:00:21]} dxe4 {[%emt 0:00:06]} 5. Nxe4 {[%emt 0:00:05]} Bb4+ {[%emt 0:00:02]} 6. Bd2 {[%emt 0:00:11][%cal Bc1d2,Bd2b4,Bb4d6][%mdl 32]} Qxd4 {[%emt 0:00:06]} 7. Bxb4 {[%emt 0:00:26]} Qxe4+ {[%emt 0:00:05]} 8. Be2 {[%emt 0:00:11]} Na6 {[%emt 1:33:21]} 9. Bd6 {[%emt 0:00:21]} Qxg2 {[%emt 0:00:00]} 10. Bf3 {[%emt 0:00:51] This pair of bishops is nice.} (10. Qd2 $5 Nf6 (10... Qxh1 $2 11. O-O-O $18) 11. Bf3 $11) 10... Qg5 {[%emt 0:00:00] Threatens to win with ...Nh6.} 11. Ne2 $1 {[%emt 0:00:09]} Ne7 {[%emt 0:00:00] White should prevent ...Nf5. The position is equal.} 12. Ng3 {[%emt 0:00:58]} (12. Nc3 $11) 12... Nf5 {[%emt 0:00:00]} (12... Qa5+ $17 13. b4 Nxb4) 13. Nxf5 $40 {[%emt 0:01:32][%mdl 128] White mounts an attack.} exf5 {[%emt 0:00:00] [#]} (13... Qxf5 $11 {remains equal.} 14. Qe2 Bd7) 14. Qb3 $1 $16 {[%emt 0:09:24] White is more active.} Nb8 $2 {[%emt 0:00:00][%mdl 8192] Loses the game.} (14... Qd8 $16 {keeps fighting.} 15. Qe3+ (15. O-O-O Qb6 $14) 15... Be6) 15. Kf1 {[%emt 0:05:46][%cal Be1f1,Bf1e2,Be2d2][%mdl 32] Strongly threatening Re1+.} Qh6 {[%emt 0:00:00]} 16. c5 {[%emt 0:25:10] aiming for Re1+.} (16. Re1+ Kd8 17. Qd1 (17. c5 Re8 $18) 17... Bd7 $18) 16... b5 {[%emt 0:00:00] [#]} 17. cxb6 $1 {[%emt 0:04:17]} axb6 {[%emt 0:00:00]} (17... Ba6+ 18. Kg2 Qg5+ (18... Qxd6 $2 19. Rhe1+ Kf8 20. b7 $18) 19. Bg3) 18. Re1+ {[%emt 0:02:09]} Be6 {[%emt 0:00:00]} 19. Qxb6 {[%emt 0:04:03]} Qh3+ {[%emt 0:00:00] Black is weak on the dark squares} 20. Ke2 {[%emt 0:00:37]} Nd7 {[%emt 0:00:00]} (20... Qh4 $142 21. Bxc6+ (21. Bxb8 O-O $11) 21... Nd7) 21. Qxc6 $18 {[%emt 0:00:55]} Rb8 {[%emt 0:00:00]} 22. b4 {[%emt 0:07:19] Black must now prevent Rhg1.} g5 {[%emt 0:00:00]} (22... Qh4 $142 23. Rc1 (23. Bxb8 O-O $16) 23... Rb6 24. Qc8+ Qd8) 23. Qc3 {[%emt 0:02:24]} (23. Kd2 $142 {[%cal Of3d5] Bd5! is the strong threat.} Qh6 24. Bd5 (24. Bxb8 O-O $18)) 23... f6 {[%emt 0:00:00]} (23... Rg8 $142 24. Bxb8 g4) 24. Kd2 {[%emt 0:01:04]} Kf7 {[%emt 0:00:00][%cal Be8f7,Bf7e6,Be6d6][%mdl 32]} 25. Rxe6 {[%emt 0:01:46]} Kxe6 {[%emt 0:00:00]} 26. Re1+ {[%emt 0:00:59]} Kxd6 {[%emt 0:00:00]} 27. Qc6# {[%emt 0:04:15] Weighted Error Value: White=0.52/Black=0.76.  Loses game:     	---       	Black=1      Mistake:       	White=2     	Black=4      Inaccurate:     	White=1     	---        OK:         	White=4     	Black=1      Best:        	White=3     	Black=2      Strong:       	White=2     	---} 1-0

[Event "Djerba Festival Masters 2024"]
[Site "Djerba"]
[Date "2024.02.22"]
[Round "4.3"]
[White "Moussard, Jules"]
[Black "Ivanchuk, Vasyl"]
[Result "1/2-1/2"]
[ECO "C92"]
[WhiteElo "2630"]
[BlackElo "2623"]
[Annotator "TA"]
[PlyCount "78"]
[EventDate "2024.02.18"]
[EventType "tourn"]
[EventCountry "TUN"]
[SourceTitle "playchess.com"]
[Source "ChessBase"]
[SourceQuality "1"]
[TimeControl "5400+30"]

{[%evp 23,78,0,29,8,38,22,41,-13,3,0,3,0,0,0,0,20,20,26,33,0,11,0,0,0,0,0,0,0,0,0,0,0,0,0,0,-6,-4,-2,0,0,0,0,0,0,0,0,0,0,0,0,0,0,0,0,0,0,0]} 1. e4 {[%emt 0:04:00]} e5 {[%emt 0:00:05]} 2. Nf3 {[%emt 0:00:05]} Nc6 {[%emt 0:00:04]} 3. Bb5 {[%emt 0:00:06][%cal Bf1b5,Bb5a4,Ba4b3][%mdl 32]} a6 {[%emt 0:00:05]} 4. Ba4 {[%emt 0:00:06]} Nf6 {[%emt 0:00:04]} 5. O-O {[%emt 0:00:06]} Be7 {[%emt 0:00:04]} 6. Re1 {[%emt 0:00:28]} b5 {[%emt 0:00:05]} 7. Bb3 {[%emt 0:00:04]} d6 {[%emt 0:00:02]} 8. c3 {[%emt 0:00:08]} O-O {[%emt 0:00:05]} 9. h3 {[%emt 0:00:11]} Bb7 {[%emt 0:00:04]} 10. d4 {[%emt 0:02:49]} Re8 {[%emt 0:00:12]} 11. Ng5 {[%emt 0:00:05]} Rf8 {[%emt 0:00:06]} 12. Nf3 {[%emt 0:00:03]} Re8 {[%emt 0:00:05]} 13. a3 {[%emt 0:04:51]} h6 {[%emt 0:06:29]} 14. Ba2 {[%emt 0:02:50]} Rc8 {[%emt 0:02:23]} 15. d5 {[%emt 0:13:01]} (15. Nbd2 $14) 15... Nb8 {[%emt 0:00:18]} 16. c4 {[%emt 0:10:45]} bxc4 {[%emt 0:08:40]} 17. Bxc4 {[%emt 0:10:32]} c6 {[%emt 0:00:08]} 18. dxc6 {[%emt 0:00:44]} Nxc6 {[%emt 0:00:03][%cal Bb8c6,Bc6d8,Bd8e6][%mdl 32]} 19. Ba2 {[%emt 0:08:57]} Qd7 {[%emt 0:06:54]} 20. Nc3 {[%emt 0:06:22]} Nd8 {[%emt 0:02:03]} 21. Bd2 {[%emt 0:05:38]} Ne6 {[%emt 0:00:34] The position is equal.} 22. Rc1 {[%emt 0:00:31]} Nc5 {[%emt 0:02:57]} 23. Bb1 {[%emt 0:00:20] Prevents Nd3.} Bc6 {[%emt 0:01:00]} 24. b4 {[%emt 0:02:35]} Na4 {[%emt 0:00:05]} 25. Nxa4 {[%emt 0:04:27]} Bxa4 {[%emt 0:00:02]} 26. Qe2 {[%emt 0:00:07]} Bb5 {[%emt 0:01:11]} 27. Qe3 {[%emt 0:00:05]} Rxc1 {[%emt 0:00:23]} 28. Rxc1 {[%emt 0:00:04]} Rc8 {[%emt 0:00:02]} 29. Nh4 {[%emt 0:03:25]} Rxc1+ {[%emt 0:12:18]} 30. Bxc1 {[%emt 0:00:12] [#]} Ng4 $1 {[%emt 0:00:01]} 31. Qg3 {[%emt 0:02:44] And now Nf5 would win.} (31. Qf3 Bxh4) 31... Qc7 {[%emt 0:00:44]} 32. Bd2 {[%emt 0:00:50]} Bg5 {[%emt 0:00:05]} 33. Bxg5 {[%emt 0:04:44]} hxg5 {[%emt 0:00:06][%cal Rc7c1]} 34. Qxg4 {[%emt 0:00:22]} gxh4 $11 {[%emt 0:00:36] KQB-KQB} 35. Qg5 {[%emt 0:03:03][%cal Ob1a2] Wards off Qc1+} Qc3 {[%emt 0:06:01] [#] Strongly threatening ...Qe1+.} 36. Qd8+ {[%emt 0:00:07]} (36. Qxh4 $2 Qe1+ (36... Qxa3 37. Qd8+ Kh7 38. Qh4+ Kg6 39. Qg3+ Qxg3 40. fxg3 $11) 37. Kh2 Qxb1 $19) 36... Kh7 {[%emt 0:00:01] ...f6 is the strong threat.} 37. Qxh4+ {[%emt 0:00:06]} ({Reject} 37. Qxd6 Qe1+ (37... Qxa3 38. Qxe5 Bd7 39. Qf4 $14) 38. Kh2 f6 $17 (38... Qxb1 39. Qxe5 Bc4 40. Qf5+ g6 41. Qf4 $17)) 37... Kg8 {[%emt 0:00:01] White must now prevent ...Qc1+.} 38. Qd8+ {[%emt 0:04:19]} Kh7 {[%emt 0:00:02] Threatens to win with ...Qe1+.} 39. Qh4+ {[%emt 0:10:08]} ({But not} 39. Qxd6 Qe1+ (39... Qxa3 40. Bc2 $11) 40. Kh2 Qxb1 41. Qxe5 Qc1 $17) 39... Kg8 {[%emt 0:55:52] Weighted Error Value: White=0.07 (flawless) /Black=0.04 (flawless) .  Mistake:       	White=1     	---        Inaccurate:     	White=1     	Black=1      OK:         	White=14    	Black=10     Best:        	White=1     	Black=4} 1/2-1/2